bitfinex/quotes_BTCUSD_20240827
["timestamp","ask_amount","ask_price","bid_price","bid_amount"]
[1724795640427,0.00480119,60471.0,60469.0,0.06626]
[1724795640627,0.00480119,60471.0,60462.0,0.02]
[1724795640628,0.63339003,60470.0,60462.0,0.02]
[1724795640856,0.40890119,60463.0,60462.0,0.02]
[1724795641106,0.40890119,60463.0,60446.0,0.00905784]
[1724795641107,0.83295664,60463.0,60446.0,0.00905784]
[1724795641322,0.83295664,60463.0,60445.0,0.47989634]
[1724795641323,0.15996545,60461.0,60445.0,0.47989634]
[1724795641576,0.00480119,60455.0,60437.0,0.066295]
[1724795641794,0.00480119,60453.0,60438.0,0.00902149]
[1724795642025,0.00480119,60453.0,60424.0,0.05007256]
[1724795642026,0.00480119,60447.0,60424.0,0.05007256]
[1724795642258,0.00480119,60447.0,60432.0,0.47989634]
[1724795642259,0.56820171,60446.0,60432.0,0.47989634]
[1724795642504,0.63339171,60446.0,60425.0,1.5]
[1724795642797,0.63339171,60446.0,60445.0,0.014]
[1724795643017,0.63339171,60446.0,60423.0,0.066309]
[1724795643018,0.00480119,60439.0,60423.0,0.066309]
[1724795643251,0.61759229,60438.0,60424.0,0.014]
[1724795643468,0.20020119,60437.0,60424.0,0.014]
[1724795643691,0.22929244,60436.0,60425.0,0.0490518]
[1724795643950,0.22929244,60436.0,60425.0,0.0630518]
[1724795643951,0.00480119,60435.0,60425.0,0.0630518]
[1724795644230,0.1954,60437.0,60425.0,0.0630518]
[1724795644231,0.38980119,60428.0,60425.0,0.014]
[1724795644457,0.22929305,60427.0,60425.0,0.014]
[1724795644940,0.1915,60426.0,60420.0,0.00819]
[1724795645168,0.22929306,60425.0,60420.0,0.00819]
[1724795646135,0.22929306,60425.0,60408.0,0.01731279]
[1724795646374,0.64409306,60425.0,60408.0,0.0082]
[1724795646632,0.64509306,60425.0,60420.0,0.014]
[1724795647562,0.64409306,60425.0,60408.0,0.0082]
[1724795647807,0.64409306,60425.0,60408.0,0.0172]
[1724795647808,0.64509306,60425.0,60408.0,0.0172]
[1724795648056,0.64095545,60425.0,60409.0,0.00278974]
[1724795648274,0.64095545,60425.0,60408.0,0.00998974]
[1724795648934,0.64095545,60425.0,60408.0,0.00098974]
[1724795648935,0.63995545,60425.0,60408.0,0.00098974]
[1724795649886,0.64095545,60425.0,60408.0,0.00098974]
[1724795650103,0.64095545,60425.0,60408.0,0.16652874]
[1724795650380,0.64195545,60425.0,60409.0,0.1]
[1724795650822,0.63995545,60425.0,60409.0,0.1]
[1724795651304,0.64095545,60425.0,60409.0,0.09967056]
[1724795651542,0.64095545,60425.0,60408.0,0.00098974]
[1724795651801,0.00413763,60424.0,60408.0,0.00098974]
[1724795652042,0.22515545,60423.0,60408.0,0.00098974]
[1724795652529,0.00413763,60422.0,60408.0,0.00098974]
[1724795652757,0.22515545,60421.0,60408.0,0.00098974]
[1724795655617,0.00893884,60420.0,60408.0,0.00098974]
[1724795655880,0.00893884,60420.0,60400.0,0.002]
[1724795655881,0.64055664,60419.0,60400.0,0.002]
[1724795656112,0.00413829,60418.0,60400.0,0.002]
[1724795656361,0.22515545,60417.0,60400.0,0.002]
[1724795656573,0.00413833,60416.0,60400.0,0.002]
[1724795656824,0.22515545,60415.0,60400.0,0.002]
[1724795657050,0.19223852,60414.0,60400.0,0.01103027]
[1724795657315,0.19223852,60414.0,60389.0,0.165593]
[1724795657316,0.00480119,60397.0,60384.0,0.00819]
[1724795657537,0.22929526,60396.0,60388.0,0.47989634]
[1724795657774,0.22515545,60396.0,60384.0,0.00819]
[1724795658261,0.5987,60400.0,60386.0,0.42022907]
[1724795658466,0.49675,60399.0,60388.0,0.00019881]
[1724795658668,0.49675,60399.0,60390.0,0.00019881]
[1724795659091,0.49675,60399.0,60398.0,0.165568]
[1724795659328,0.32852322,60399.0,60398.0,0.65686826]
[1724795659592,0.000902,60446.0,60398.0,0.65686826]
[1724795659593,0.5987,60419.0,60418.0,0.165513]
[1724795659788,0.59859576,60435.0,60422.0,0.00019881]
[1724795660024,0.59859576,60435.0,60418.0,0.81546545]
[1724795660025,0.49645,60434.0,60427.0,0.42042788]
[1724795660238,0.49645,60434.0,60429.0,0.00019881]
[1724795660456,0.49645,60434.0,60428.0,0.1]
[1724795660457,0.49645,60434.0,60432.0,0.00019881]
[1724795661632,0.49645,60434.0,60432.0,0.04789494]
[1724795662073,0.49645,60434.0,60432.0,0.00019881]
[1724795662792,0.49645,60434.0,60432.0,0.00929097]
[1724795663344,0.49745,60434.0,60432.0,0.00929097]
[1724795663850,0.49745,60434.0,60433.0,0.00019881]
[1724795664078,0.49745,60434.0,60433.0,0.16016426]
[1724795665000,0.49645,60434.0,60433.0,0.16016426]
[1724795665239,0.49645,60434.0,60433.0,1.70786039]
[1724795665683,0.49745,60434.0,60433.0,1.70786039]
[1724795665884,0.49645,60434.0,60433.0,1.5]
[1724795666325,0.49745,60434.0,60433.0,1.5]
[1724795666535,0.49645,60434.0,60433.0,1.5]
[1724795666961,0.49745,60434.0,60432.0,0.00929097]
[1724795668061,0.49645,60434.0,60432.0,0.00929097]
[1724795668336,0.49645,60434.0,60373.0,1.359]
[1724795668337,0.005,60385.0,60373.0,1.359]
[1724795668544,0.005,60385.0,60379.0,0.47989634]
[1724795668545,0.99019133,60385.0,60379.0,0.47989634]
[1724795668762,0.005,60377.0,60363.0,0.47989634]
[1724795668982,0.4896,60373.0,60363.0,0.47989634]
[1724795669397,1.01035318,60373.0,60349.0,0.00904546]
[1724795669613,1.01035318,60373.0,60348.0,0.00819]
[1724795670311,0.4092,60372.0,60348.0,0.00819]
[1724795670523,0.005,60366.0,60348.0,0.074591]
[1724795670758,0.66141545,60366.0,60348.0,0.00819]
[1724795671199,1.07061545,60366.0,60348.0,0.00819]
[1724795671839,1.07161545,60366.0,60348.0,0.00819]
[1724795672224,1.07061545,60366.0,60348.0,0.00819]
[1724795672454,1.07161545,60366.0,60348.0,0.00819]
[1724795673117,1.07261545,60366.0,60348.0,0.00819]
[1724795673319,0.005,60360.0,60348.0,0.00819]
[1724795673534,0.74516545,60360.0,60348.0,0.00819]
[1724795673683,1.24161545,60360.0,60348.0,0.00819]
[1724795674995,0.005,60349.0,60348.0,0.00819]
[1724795675194,0.16496545,60349.0,60348.0,0.00819]
[1724795675401,0.16496545,60349.0,60322.0,0.00819]
[1724795675402,0.3912,60325.0,60322.0,0.00819]
[1724795675610,0.3912,60325.0,60316.0,0.00012]
[1724795675611,0.49645,60324.0,60316.0,0.00919217]
[1724795675810,0.49645,60324.0,60317.0,0.04890885]
[1724795676245,0.49645,60324.0,60316.0,0.00012]
[1724795676652,0.46251298,60324.0,60320.0,0.47989634]
[1724795676856,0.46251298,60324.0,60317.0,0.15996545]
[1724795677561,0.46251298,60324.0,60318.0,0.1]
[1724795677865,0.46351298,60324.0,60316.0,0.00012]
[1724795678289,0.46251298,60324.0,60316.0,0.00012]
[1724795678512,0.46351298,60324.0,60316.0,0.16008545]
[1724795678737,0.46251298,60324.0,60317.0,0.27688194]
[1724795678897,0.46251298,60324.0,60318.0,0.1]
[1724795679074,0.46351298,60324.0,60318.0,0.1]
[1724795679277,0.46251298,60324.0,60319.0,0.54546545]
[1724795679483,0.46251298,60324.0,60317.0,0.01691649]
[1724795679484,0.46251298,60324.0,60320.0,0.16625019]
[1724795679688,0.86651298,60324.0,60320.0,0.1]
[1724795679914,0.86651298,60324.0,60316.0,0.00012]
[1724795679915,0.005,60322.0,60316.0,0.00012]
[1724795680115,0.34610959,60323.0,60316.0,0.00012]
[1724795680116,0.005,60317.0,60316.0,0.00012]
[1724795680316,0.62747843,60317.0,60316.0,0.00012]
[1724795680673,0.62747843,60317.0,60316.0,0.01012]
[1724795681195,1.03247843,60317.0,60316.0,0.01012]
[1724795681410,1.03147843,60317.0,60316.0,0.01012]
[1724795681907,1.03247843,60317.0,60316.0,0.01012]
[1724795682339,0.00480064,60309.0,60293.0,0.47989634]
[1724795682512,1.02747843,60317.0,60293.0,0.47989634]
[1724795682513,0.00480064,60305.0,60293.0,0.47989634]
[1724795682720,0.62662464,60308.0,60278.0,0.00930473]
[1724795682721,0.00439838,60299.0,60278.0,0.00930473]
[1724795682928,0.00439838,60299.0,60270.0,0.066478]
[1724795682929,0.63102357,60299.0,60270.0,0.066478]
[1724795683558,0.62687681,60299.0,60270.0,0.47989634]
[1724795683788,0.404,60289.0,60260.0,0.00060162]
[1724795684009,0.59039838,60285.0,60284.0,0.01]
[1724795684216,0.59039838,60285.0,60258.0,0.00060162]
[1724795684217,1.21287681,60285.0,60258.0,0.00060162]
[1724795684428,0.16851128,60284.0,60258.0,0.00930199]
[1724795684626,0.63102426,60284.0,60258.0,0.00060162]
[1724795684837,0.63102426,60284.0,60257.0,0.066491]
[1724795685055,0.63102426,60284.0,60257.0,0.00890437]
[1724795685268,0.63102426,60284.0,60283.0,0.0997161]
[1724795685904,1.03087681,60284.0,60256.0,0.0082]
[1724795686116,0.40271793,60274.0,60256.0,0.0082]
[1724795686345,0.6266275,60273.0,60256.0,0.0082]
[1724795686797,0.00439838,60270.0,60256.0,0.0082]
[1724795687037,0.62662731,60269.0,60256.0,0.0082]
[1724795688264,0.62762731,60269.0,60256.0,0.0082]
[1724795688466,0.62762731,60269.0,60257.0,0.15996545]
[1724795688467,0.46251298,60269.0,60257.0,0.15996545]
[1724795688738,0.1604603,60269.0,60268.0,0.16652662]
[1724795688973,0.005,60319.0,60268.0,0.16652662]
[1724795688974,0.00414763,60296.0,60277.0,0.00060162]
[1724795689227,0.00439838,60302.0,60277.0,0.00060162]
[1724795689228,0.47989634,60288.0,60278.0,0.15996545]
[1724795689462,0.47989634,60288.0,60277.0,0.65610162]
[1724795689463,0.50176667,60287.0,60279.0,0.21478791]
[1724795689659,0.50176667,60287.0,60279.0,0.1]
[1724795689660,0.49762,60287.0,60279.0,0.1]
[1724795689873,0.49762,60287.0,60280.0,0.35696545]
[1724795690091,0.49762,60287.0,60283.0,0.00060162]
[1724795690307,0.49762,60287.0,60284.0,0.21572216]
[1724795690508,0.49762,60287.0,60285.0,0.099]
[1724795690720,0.49762,60287.0,60286.0,0.15996545]
[1724795691132,0.49862,60287.0,60286.0,0.15996545]
[1724795691538,0.49962,60287.0,60286.0,0.53986707]
[1724795691745,0.49962,60287.0,60286.0,0.77600445]
[1724795691947,0.49862,60287.0,60286.0,0.61012945]
[1724795692145,0.49962,60287.0,60286.0,0.61812945]
[1724795692353,0.49962,60287.0,60286.0,0.78400445]
[1724795692564,0.49962,60287.0,60286.0,1.21575545]
[1724795692791,0.39475038,60287.0,60286.0,1.21575545]
[1724795692998,0.22531882,60287.0,60286.0,2.29350645]
[1724795693209,0.3988,60324.0,60303.0,0.00060162]
[1724795693210,0.00414603,60323.0,60303.0,0.00060162]
[1724795693418,0.47989634,60308.0,60301.0,0.6555]
[1724795693645,0.49748,60307.0,60302.0,0.33551545]
[1724795694046,0.49748,60307.0,60302.0,0.17555]
[1724795694266,0.49748,60307.0,60302.0,0.33551545]
[1724795694481,0.49748,60307.0,60303.0,0.16996545]
[1724795694682,0.49748,60307.0,60304.0,0.20016171]
[1724795694892,0.49748,60307.0,60305.0,0.15996545]
[1724795695098,0.49748,60307.0,60306.0,0.1]
[1724795695746,0.49748,60307.0,60306.0,0.25996545]
[1724795696180,0.49748,60307.0,60306.0,0.26056707]
[1724795696413,0.49748,60307.0,60306.0,0.77482392]
[1724795696619,0.49748,60307.0,60306.0,0.94064392]
[1724795696832,0.49748,60307.0,60306.0,0.3949223]
[1724795697042,0.49748,60307.0,60306.0,0.1]
[1724795697251,0.49848,60307.0,60303.0,0.0115]
[1724795697470,0.49848,60307.0,60304.0,0.15996545]
[1724795697710,0.49748,60307.0,60304.0,0.15996545]
[1724795697918,0.49748,60307.0,60305.0,0.11605671]
[1724795698129,0.49848,60307.0,60306.0,0.36846545]
[1724795698346,0.49848,60307.0,60306.0,0.45646545]
[1724795698553,0.49848,60307.0,60306.0,0.45706707]
[1724795698767,0.49948,60307.0,60306.0,0.34501238]
[1724795698993,0.49848,60307.0,60306.0,0.14851238]
[1724795699209,0.49848,60307.0,60306.0,0.1]
[1724795699210,0.49948,60307.0,60306.0,0.1]
[1724795699441,0.49948,60307.0,60305.0,0.012]
[1724795699885,0.49948,60307.0,60305.0,0.17196545]
[1724795700092,0.49948,60307.0,60306.0,0.1]
[1724795700574,0.49948,60307.0,60264.0,0.52339898]
[1724795700575,0.1972,60295.0,60275.0,0.02596642]
[1724795700795,0.3797,60276.0,60275.0,0.02596642]
[1724795701001,0.00439838,60275.0,60274.0,0.000822]
[1724795701207,0.50602778,60275.0,60274.0,0.000822]
[1724795702141,1.32485685,60275.0,60274.0,0.000822]
[1724795702352,1.35085025,60275.0,60274.0,0.000822]
[1724795702559,0.60059838,60257.0,60241.0,0.0082]
[1724795702770,0.60059838,60257.0,60253.0,0.47989634]
[1724795702771,1.25804383,60257.0,60253.0,0.47989634]
[1724795702978,1.25804383,60257.0,60235.0,0.00012]
[1724795703807,0.49748,60257.0,60240.0,0.00060162]
[1724795704023,0.49748,60257.0,60235.0,0.00012]
[1724795704024,0.49748,60257.0,60256.0,0.16816545]
[1724795704250,0.49748,60257.0,60256.0,0.18586216]
[1724795704452,0.49748,60257.0,60256.0,1.01625578]
[1724795704663,0.4769905,60257.0,60256.0,1.76287278]
[1724795704879,0.47989634,60295.0,60279.0,0.00060162]
[1724795705094,0.47989634,60295.0,60280.0,1.53846545]
[1724795705320,0.49762,60294.0,60281.0,0.1]
[1724795705567,0.49762,60294.0,60285.0,0.00060162]
[1724795705783,0.49762,60294.0,60291.0,0.00060162]
[1724795706000,0.49762,60294.0,60292.0,0.15996545]
[1724795706215,0.49762,60294.0,60293.0,0.93801433]
[1724795706441,0.49762,60294.0,60293.0,1.65512378]
[1724795706676,0.49762,60294.0,60293.0,2.15269278]
[1724795706890,0.49762,60294.0,60293.0,1.82097978]
[1724795707316,0.49762,60294.0,60293.0,2.52849278]
[1724795707525,0.1914,60328.0,60306.0,0.00060162]
[1724795707739,0.47989634,60312.0,60307.0,1.53846545]
[1724795707981,0.49737,60327.0,60310.0,0.15996545]
[1724795708197,0.42022907,60353.0,60310.0,0.873609]
[1724795708198,0.49737,60311.0,60310.0,0.873609]
[1724795708430,0.005,60343.0,60320.0,0.1946]
[1724795708651,0.396431,60348.0,60320.0,0.1946]
[1724795708652,0.47989634,60331.0,60321.0,1.4785]
[1724795708862,0.49725,60330.0,60322.0,0.27830846]
[1724795709065,0.49725,60330.0,60323.0,0.25996545]
[1724795709560,0.49725,60330.0,60324.0,0.26225175]
[1724795709769,0.49725,60330.0,60326.0,0.3845]
[1724795709974,0.49725,60330.0,60327.0,0.25996545]
[1724795710183,0.49725,60330.0,60328.0,0.25063717]
[1724795710391,0.49725,60330.0,60329.0,0.33400914]
[1724795711029,0.49725,60330.0,60329.0,0.49976614]
[1724795711236,0.009031,60348.0,60329.0,0.25996545]
[1724795711443,0.009031,60348.0,60332.0,0.15996545]
[1724795711663,0.49718,60347.0,60333.0,0.3886]
[1724795711890,0.49718,60347.0,60338.0,0.15996545]
[1724795712110,0.49718,60347.0,60342.0,0.15996545]
[1724795712325,0.34177642,60347.0,60343.0,0.2852]
[1724795712531,0.34177642,60347.0,60346.0,0.15996545]
[1724795712740,0.34177642,60347.0,60346.0,0.25996545]
[1724795713172,0.34177642,60347.0,60346.0,0.28296545]
[1724795714828,0.34177642,60347.0,60346.0,0.44867645]
[1724795715170,0.34167962,60347.0,60346.0,0.78009845]
[1724795715378,0.34167962,60347.0,60346.0,0.44867645]
[1724795715585,0.34167962,60347.0,60346.0,0.78009845]
[1724795715992,0.34167962,60347.0,60346.0,1.12071537]
[1724795716200,0.009031,60372.0,60346.0,0.70376037]
[1724795716400,0.009031,60372.0,60362.0,0.15996545]
[1724795716617,0.009031,60372.0,60363.0,0.7555]
[1724795716822,0.49698,60367.0,60364.0,0.15996545]
[1724795717042,0.49698,60367.0,60366.0,0.15996545]
[1724795717274,0.49698,60367.0,60366.0,0.62332145]
[1724795717481,0.009031,60372.0,60371.0,0.665642]
[1724795717692,0.5991,60407.0,60371.0,0.665642]
[1724795717693,0.5991,60407.0,60372.0,0.496918]
[1724795717925,0.5991,60407.0,60377.0,0.35]
[1724795718127,0.5991,60407.0,60393.0,0.03915545]
[1724795718128,0.189,60407.0,60393.0,0.03915545]
[1724795718334,0.009031,60408.0,60393.0,0.03915545]
[1724795718335,0.009031,60408.0,60394.0,0.15996545]
[1724795718598,0.009031,60408.0,60393.0,0.30473645]
[1724795718599,0.009031,60408.0,60402.0,0.15996545]
[1724795718840,0.49668,60407.0,60403.0,0.1]
[1724795719096,0.49668,60407.0,60404.0,0.15996545]
[1724795719328,0.49668,60407.0,60405.0,0.1]
[1724795719612,0.49668,60407.0,60406.0,0.15996545]
[1724795719869,0.49668,60407.0,60406.0,0.25996545]
[1724795720589,0.88078,60407.0,60406.0,0.1]
[1724795720844,0.49668,60407.0,60395.0,0.6555]
[1724795721078,0.00413874,60406.0,60396.0,0.25996545]
[1724795721307,0.49668,60405.0,60396.0,0.25996545]
[1724795721566,0.5752,60404.0,60396.0,0.25996545]
[1724795721793,0.49668,60403.0,60396.0,0.25996545]
[1724795722251,0.49668,60403.0,60396.0,0.1]
[1724795722463,0.49668,60403.0,60374.0,0.5]
[1724795722464,0.39043881,60402.0,60374.0,0.5]
[1724795722672,0.39043881,60402.0,60375.0,0.81546545]
[1724795722673,0.005,60400.0,60375.0,0.81546545]
[1724795722898,0.00413983,60399.0,60375.0,0.81546545]
[1724795723112,0.49668,60399.0,60383.0,0.15996545]
[1724795723555,0.49668,60399.0,60393.0,0.15996545]
[1724795723767,0.49668,60399.0,60398.0,0.15996545]
[1724795723974,0.49668,60399.0,60398.0,1.20019945]
[1724795724183,0.49668,60399.0,60398.0,1.81990345]
[1724795724843,0.497582,60399.0,60398.0,1.7300728]
[1724795725055,0.497582,60399.0,60398.0,1.68510344]
[1724795725264,0.497582,60399.0,60398.0,2.01623944]
[1724795725494,0.497582,60399.0,60398.0,2.0612088]
[1724795725715,0.45296858,60399.0,60398.0,2.7633448]
[1724795725968,0.45296858,60399.0,60398.0,2.8011729]
[1724795726172,0.17804125,60399.0,60398.0,2.6086729]
[1724795726390,0.009031,60408.0,60407.0,1.677717]
[1724795726597,0.009031,60408.0,60407.0,3.60937845]
[1724795727035,0.505661,60408.0,60407.0,3.33821745]
[1724795727268,0.505661,60408.0,60407.0,2.88086545]
[1724795727472,0.42354293,60408.0,60407.0,2.88086545]
[1724795727676,0.42354293,60408.0,60407.0,3.16158045]
[1724795728006,0.42354293,60408.0,60407.0,2.42418245]
[1724795728208,0.42354293,60408.0,60407.0,2.43818245]
[1724795728413,0.42354293,60408.0,60407.0,3.75216145]
[1724795728624,0.42354293,60408.0,60407.0,4.4732617]
[1724795728827,0.42354293,60408.0,60407.0,4.5250898]
[1724795729387,0.000902,60421.0,60407.0,4.5250898]
[1724795729388,0.000902,60421.0,60420.0,0.5]
[1724795729581,0.189,60447.0,60433.0,0.165472]
[1724795729813,0.165472,60434.0,60433.0,1.63846545]
[1724795729992,0.165472,60434.0,60433.0,1.71846545]
[1724795730199,0.165472,60434.0,60433.0,2.21488245]
[1724795730348,0.165472,60434.0,60433.0,2.33874745]
[1724795730552,0.165472,60434.0,60433.0,2.41433945]
[1724795730954,0.165472,60434.0,60433.0,1.63846545]
[1724795730955,0.16023293,60434.0,60433.0,1.63846545]
[1724795731369,0.16023293,60434.0,60433.0,1.17696545]
[1724795731595,0.16023293,60434.0,60433.0,0.6555]
[1724795731596,0.54003293,60434.0,60433.0,0.6555]
[1724795731798,0.16023293,60434.0,60433.0,0.6695]
[1724795732001,0.16023293,60434.0,60433.0,0.014]
[1724795732002,0.54394102,60434.0,60433.0,0.014]
[1724795732605,0.16414102,60434.0,60433.0,0.014]
[1724795732845,0.16414102,60434.0,60423.0,0.47989634]
[1724795733041,0.16414102,60434.0,60424.0,0.15996545]
[1724795734232,0.16414102,60434.0,60425.0,0.15996545]
[1724795734957,0.16414102,60434.0,60422.0,0.723]
[1724795734958,0.16414102,60434.0,60433.0,0.58066545]
[1724795735159,0.11978365,60434.0,60433.0,1.10008245]
[1724795735361,0.11978365,60434.0,60433.0,2.15716755]
[1724795735550,0.11978365,60434.0,60433.0,3.65716755]
[1724795736513,0.11978365,60434.0,60433.0,3.67116755]
[1724795736514,0.12068565,60434.0,60433.0,3.67116755]
[1724795736915,0.1835,60464.0,60445.0,0.5]
[1724795737252,0.1835,60464.0,60452.0,0.15996545]
[1724795737452,0.1835,60464.0,60456.0,0.15996545]
[1724795737453,0.49626,60459.0,60456.0,0.15996545]
[1724795737607,0.49626,60459.0,60457.0,0.1]
[1724795737833,0.49626,60459.0,60458.0,0.15996545]
[1724795738036,0.49626,60459.0,60458.0,0.68966545]
[1724795738444,0.24626,60459.0,60458.0,0.7351123]
[1724795738888,0.24626,60459.0,60458.0,0.7395917]
[1724795739294,0.24626,60459.0,60458.0,0.68966545]
[1724795739742,0.24626,60459.0,60458.0,0.70366545]
[1724795740090,0.24626,60459.0,60458.0,0.57970545]
[1724795740262,0.24626,60459.0,60458.0,0.55570545]
[1724795740642,0.24626,60459.0,60458.0,0.6056317]
[1724795741475,0.24626,60459.0,60458.0,0.65107855]
[1724795741645,0.24626,60459.0,60458.0,0.55570545]
[1724795742271,0.24626,60459.0,60458.0,0.5871523]
[1724795742529,0.24626,60459.0,60458.0,0.6011523]
[1724795743126,0.24626,60459.0,60458.0,0.5871523]
[1724795743336,0.24626,60459.0,60458.0,0.6011523]
[1724795743543,0.24626,60459.0,60458.0,1.14919955]
[1724795743923,0.24626,60459.0,60458.0,1.81081555]
[1724795744259,0.24626,60459.0,60458.0,1.48000755]
[1724795744488,0.24626,60459.0,60458.0,1.98360755]
[1724795744736,0.005,60504.0,60458.0,1.98360755]
[1724795744737,0.47989634,60502.0,60483.0,0.5]
[1724795744955,0.47989634,60502.0,60469.0,0.8535]
[1724795744956,0.00413212,60501.0,60486.0,0.15996545]
[1724795745193,0.00413212,60501.0,60484.0,1.4785]
[1724795745194,0.1901,60493.0,60484.0,1.4785]
[1724795745411,0.49596,60492.0,60484.0,1.4785]
[1724795745856,0.49596,60492.0,60485.0,0.15996545]
[1724795746058,0.00413288,60491.0,60486.0,0.1]
[1724795746329,0.49596,60490.0,60484.0,0.1]
[1724795746660,0.0041335,60489.0,60465.0,0.00726988]
[1724795746884,0.49596,60488.0,60484.0,0.014]
[1724795747099,0.00413371,60487.0,60484.0,0.014]
[1724795747312,0.49596,60486.0,60484.0,0.014]
[1724795747760,0.38393356,60485.0,60484.0,0.014]
[1724795747992,0.30747605,60486.0,60485.0,1.3785]
[1724795748215,0.09039345,60486.0,60485.0,3.57115685]
[1724795748448,0.024226,60486.0,60485.0,4.19669676]
[1724795748679,0.00142001,60495.0,60494.0,1.500927]
[1724795748916,0.00142001,60495.0,60494.0,2.74570345]
[1724795749127,0.00142001,60495.0,60494.0,7.09517776]
[1724795749337,0.1901,60527.0,60494.0,7.09517776]
[1724795749338,0.1901,60527.0,60506.0,0.995817]
[1724795749539,0.1901,60527.0,60506.0,3.91963545]
[1724795749746,0.1901,60527.0,60506.0,3.93785618]
[1724795749956,0.1901,60527.0,60506.0,3.85915718]
[1724795750150,0.1901,60527.0,60506.0,2.27714045]
[1724795750399,0.00413033,60526.0,60506.0,1.63846545]
[1724795750612,0.00413033,60526.0,60506.0,1.4785]
[1724795750613,0.3798,60513.0,60506.0,1.4785]
[1724795750827,0.3798,60513.0,60494.0,0.014]
[1724795750828,0.204109,60507.0,60494.0,0.014]
[1724795751046,0.005,60500.0,60494.0,0.014]
[1724795751261,0.4008,60504.0,60494.0,0.014]
[1724795751262,0.60483303,60499.0,60494.0,0.014]
[1724795751475,0.60983303,60499.0,60489.0,0.6555]
[1724795751884,0.005,60498.0,60489.0,0.6555]
[1724795752085,0.3763,60497.0,60489.0,0.6555]
[1724795752308,0.00413298,60494.0,60489.0,0.6555]
[1724795752510,0.49592,60497.0,60489.0,0.6555]
[1724795752511,0.37796372,60493.0,60489.0,0.6555]
[1724795752921,0.37796372,60493.0,60471.0,0.00086702]
[1724795752922,0.18583298,60492.0,60471.0,0.00086702]
[1724795753177,0.00166372,60491.0,60477.0,0.15996545]
[1724795753406,0.00166372,60491.0,60469.0,0.6555]
[1724795753407,0.00413298,60485.0,60469.0,0.6555]
[1724795753621,0.00166372,60489.0,60474.0,0.47989634]
[1724795753854,0.4007,60490.0,60474.0,0.47989634]
[1724795753855,0.4007,60490.0,60475.0,0.15996545]
[1724795754079,0.49592,60484.0,60475.0,0.15996545]
[1724795754551,0.49592,60484.0,60483.0,0.32616747]
[1724795754799,0.49592,60484.0,60483.0,2.12949347]
[1724795755016,0.49592,60484.0,60483.0,2.22636371]
[1724795755262,0.49592,60484.0,60483.0,2.22140271]
[1724795755440,0.49592,60484.0,60483.0,2.43890847]
[1724795755684,0.49592,60484.0,60483.0,2.10823747]
[1724795755921,0.49592,60484.0,60483.0,2.39159547]
[1724795756164,0.3762,60517.0,60501.0,0.00086702]
[1724795756391,0.3762,60517.0,60506.0,0.00086702]
[1724795756392,0.1949,60510.0,60506.0,0.00086702]
[1724795756615,0.49496298,60506.0,60504.0,0.25996545]
[1724795757307,0.49496298,60506.0,60505.0,0.066214]
[1724795757534,0.49496298,60506.0,60505.0,0.24917945]
[1724795757783,0.49496298,60506.0,60505.0,1.08107945]
[1724795758021,0.49496298,60506.0,60505.0,1.22576245]
[1724795758479,0.49496298,60506.0,60505.0,1.08107945]
[1724795759169,0.49496298,60506.0,60505.0,1.09507945]
[1724795759793,0.49496298,60506.0,60505.0,1.14316282]
[1724795760013,0.49496298,60506.0,60505.0,1.63898882]
[1724795760245,0.49496298,60506.0,60505.0,1.26035445]
[1724795760474,0.49586388,60506.0,60505.0,1.63898882]
[1724795760678,0.1859,60527.0,60515.0,0.5]
[1724795760883,0.1859,60527.0,60518.0,0.15996545]
[1724795761053,0.1859,60527.0,60519.0,0.1]
[1724795761281,0.50473001,60520.0,60519.0,0.25996545]
[1724795762831,0.50473001,60520.0,60519.0,0.27396545]
[1724795763994,0.50473001,60520.0,60519.0,0.25996545]
[1724795764401,0.50473001,60520.0,60519.0,0.27396545]
[1724795764603,0.50473001,60520.0,60519.0,0.114]
[1724795764807,0.89783001,60520.0,60505.0,0.066214]
[1724795765013,0.00166372,60519.0,60506.0,0.63986179]
[1724795765207,0.00166372,60519.0,60505.0,0.066214]
[1724795765208,0.005,60514.0,60505.0,0.066214]
[1724795765436,0.1836,60517.0,60505.0,0.066214]
[1724795765437,0.005,60511.0,60505.0,0.066214]
[1724795765644,0.3931,60512.0,60505.0,0.066214]
[1724795765645,0.005,60509.0,60505.0,0.066214]
[1724795765841,0.69287372,60508.0,60501.0,0.6555]
[1724795766099,0.4155,60506.0,60505.0,0.014]
[1724795766266,0.4155,60506.0,60481.0,0.00742944]
[1724795766267,0.005,60503.0,60481.0,0.00742944]
[1724795766439,0.90621,60506.0,60485.0,0.81546545]
[1724795766440,0.50237372,60502.0,60485.0,0.81546545]
[1724795766644,0.4105,60501.0,60498.0,0.066241]
[1724795766902,0.606,60499.0,60485.0,0.81546545]
[1724795767190,0.005,60494.0,60485.0,0.6555]
[1724795767345,0.76596545,60499.0,60485.0,0.6555]
[1724795767346,0.4105,60492.0,60485.0,0.6555]
[1724795767545,0.49737372,60491.0,60485.0,0.6555]
[1724795767942,0.005,60486.0,60485.0,0.6555]
[1724795768170,0.4105,60485.0,60484.0,0.000819]
[1724795768368,0.90621,60485.0,60484.0,0.000819]
[1724795768976,1.10171,60485.0,60472.0,0.066262]
[1724795769188,0.4105,60483.0,60474.0,0.47989634]
[1724795769341,0.005,60486.0,60461.0,0.6555]
[1724795769342,0.005,60463.0,60461.0,1.13539634]
[1724795769539,0.005,60463.0,60461.0,0.6555]
[1724795769540,0.01581366,60462.0,60461.0,0.6555]
[1724795769788,0.01581366,60462.0,60453.0,0.066281]
[1724795769997,0.01581366,60462.0,60454.0,0.15996545]
[1724795770803,0.4105,60460.0,60450.0,0.723]
[1724795771011,0.01747738,60459.0,60450.0,0.789284]
[1724795771212,0.0172784,60459.0,60450.0,0.789284]
[1724795771406,0.0172784,60459.0,60444.0,0.00818]
[1724795771407,0.005,60455.0,60444.0,0.00818]
[1724795771652,0.1973,60457.0,60444.0,0.00818]
[1724795771653,0.005,60450.0,60444.0,0.00818]
[1724795771855,0.42927942,60449.0,60444.0,0.00818]
[1724795772057,0.43427942,60449.0,60444.0,0.00818]
[1724795772227,0.005,60446.0,60444.0,0.00818]
[1724795772391,0.21707942,60445.0,60444.0,0.00818]